bitfinex/quotes_SOLUSD_20220130
["timestamp","ask_amount","ask_price","bid_price","bid_amount"]
[1643516192297,1.45396285,94.625,94.53,6.0]
[1643516192492,1.45396285,94.631,94.54,15.34]
[1643516192694,1.45396285,94.632,94.54,15.34]
[1643516192893,1.45396285,94.634,94.541,0.25]
[1643516193093,38.7060651,94.633,94.541,0.25]
[1643516193297,24.5759,94.632,94.541,0.25]
[1643516193495,6.0,94.622,94.541,0.25]
[1643516193694,24.5759,94.621,94.541,0.25]
[1643516193895,24.8259,94.621,94.542,1.29452699]
[1643516194101,24.8259,94.621,94.552,6.0]
[1643516194295,24.8259,94.621,94.56,15.34]
[1643516194494,0.25,94.621,94.56,15.34]
[1643516194697,0.25,94.621,94.561,0.25]
[1643516194895,0.25,94.621,94.56,15.34]
[1643516195098,0.25,94.621,94.561,0.25]
[1643516195396,0.25,94.622,94.561,0.25]
[1643516195596,0.25,94.622,94.56,15.34]
[1643516195796,6.25,94.622,94.56,15.34]
[1643516196196,24.9906,94.621,94.56,15.34]
[1643516196495,0.25,94.62,94.56,15.34]
[1643516196699,6.0,94.611,94.56,15.34]
[1643516196897,0.25,94.62,94.56,15.34]
[1643516197098,0.25,94.62,94.57,6.0]
[1643516197099,0.25,94.61,94.57,6.0]
[1643516197297,0.25,94.62,94.57,6.0]
[1643516197697,0.25,94.62,94.56,15.34]
[1643516198096,0.25,94.62,94.561,0.25]
[1643516198301,0.25,94.62,94.57,6.0]
[1643516198698,0.25,94.62,94.571,0.25]
[1643516200198,0.25,94.62,94.561,0.25]
[1643516201299,0.25,94.62,94.56,15.34]
[1643516202200,0.25,94.62,94.561,0.25]
[1643516202400,0.25,94.62,94.56,15.34]
[1643516202900,0.25,94.62,94.561,0.25]
[1643516203401,0.25,94.62,94.57,6.0]
[1643516203605,0.25,94.62,94.571,6.0]
[1643516204005,0.25,94.62,94.561,0.25]
[1643516205907,0.25,94.62,94.56,15.34]
[1643516206437,0.25,94.62,94.561,0.25]
[1643516207240,6.0,94.611,94.561,0.25]
[1643516207739,0.25,94.61,94.561,0.25]
[1643516210444,0.25,94.61,94.56,15.34]
[1643516210645,0.25,94.61,94.54,15.34]
[1643516210844,0.25,94.61,94.541,6.0]
[1643516211143,0.25,94.61,94.55,6.0]
[1643516211343,0.25,94.61,94.54,15.34]
[1643516212747,0.25,94.61,94.541,0.25]
[1643516213847,24.5543,94.61,94.541,0.25]
[1643516214247,6.0,94.6,94.541,0.25]
[1643516214447,27.24860195,94.599,94.54,15.34]
[1643516215652,6.0,94.589,94.54,15.34]
[1643516215848,0.25,94.588,94.541,0.25]
[1643516216047,6.25,94.588,94.541,0.25]
[1643516218952,0.25,94.588,94.541,0.25]
[1643516219353,0.25,94.597,94.55,6.0]
[1643516219554,0.25,94.597,94.55,21.34]
[1643516219752,0.25,94.597,94.55,15.34]
[1643516220355,6.0,94.588,94.55,15.34]
[1643516220853,0.25,94.587,94.55,15.34]
[1643516221856,0.25,94.597,94.55,15.34]
[1643516224565,0.25,94.597,94.56,6.0]
[1643516226188,0.25,94.597,94.541,0.25]
[1643516226189,0.25,94.597,94.541,6.25]
[1643516226388,0.25,94.597,94.542,0.25]
[1643516226687,0.25,94.597,94.55,6.0]
[1643516230595,0.25,94.597,94.54,15.34]
[1643516232992,0.25,94.597,94.541,0.25]
[1643516233393,0.25,94.598,94.54,15.34]
[1643516233794,24.8813,94.598,94.54,15.34]
[1643516234997,6.0,94.588,94.54,15.34]
[1643516235199,6.0,94.588,94.521,1.47015421]
[1643516235396,25.1444,94.587,94.52,15.34]
[1643516235596,6.0,94.577,94.523,6.0]
[1643516235795,0.25,94.576,94.523,6.0]
[1643516235995,25.0492,94.576,94.523,6.0]
[1643516236998,25.0492,94.576,94.531,6.0]
[1643516237198,25.0492,94.576,94.521,23.5008]
[1643516238803,0.25,94.576,94.521,23.5008]
[1643516239001,6.0,94.588,94.522,0.25]
[1643516239203,23.9919,94.597,94.521,23.5008]
[1643516239403,6.0,94.587,94.522,0.25]
[1643516240407,0.25,94.586,94.522,0.25]
[1643516240805,0.25,94.586,94.531,6.0]
[1643516241007,0.25,94.586,94.521,23.5008]
[1643516241206,24.8982,94.586,94.52,15.34]
[1643516241606,6.0,94.576,94.52,15.34]
[1643516241807,0.25,94.575,94.52,15.34]
[1643516245408,0.25,94.575,94.521,0.25]
[1643516246410,0.25,94.585,94.521,0.25]
[1643516247012,6.0,94.576,94.521,0.25]
[1643516247414,0.25,94.575,94.521,0.25]
[1643516250522,0.25,94.585,94.53,6.0]
[1643516250725,0.25,94.585,94.53,14.7]
[1643516250922,0.25,94.585,94.531,0.25]
[1643516251150,0.25,94.585,94.531,6.25]
[1643516251342,0.25,94.585,94.531,6.0]
[1643516251743,0.25,94.585,94.531,12.7]
[1643516252343,6.0,94.576,94.531,12.7]
[1643516252743,0.25,94.575,94.531,12.7]
[1643516253947,0.25,94.585,94.531,12.7]
[1643516254747,6.0,94.576,94.531,12.7]
[1643516255148,6.0,94.576,94.54,15.34]
[1643516256551,6.0,94.576,94.52,15.34]
[1643516256746,0.25,94.575,94.52,15.34]
[1643516264655,0.25,94.575,94.521,24.1373]
[1643516266457,0.25,94.575,94.52,15.34]
[1643516271267,23.9206,94.575,94.52,15.34]
[1643516271663,6.0,94.565,94.52,15.34]
[1643516271863,38.9560651,94.564,94.52,15.34]
[1643516272465,62.2988651,94.564,94.52,15.34]
[1643516272664,38.9560651,94.564,94.52,15.34]
[1643516274265,0.25,94.563,94.52,15.34]
[1643516275066,6.0,94.554,94.52,15.34]
[1643516276667,0.25,94.563,94.52,15.34]
[1643516277168,6.0,94.554,94.52,15.34]
[1643516278170,0.25,94.553,94.52,15.34]
[1643516279975,1.45396285,94.596,94.52,15.34]
[1643516280173,1.45396285,94.596,94.53,6.0]
[1643516280376,0.25,94.595,94.531,6.0]
[1643516280577,15.867,94.62,94.54,6.0]
[1643516280578,1.45396285,94.6,94.54,6.0]
[1643516280775,52.883,94.65,94.55,15.34]
[1643516280776,1.45396285,94.603,94.55,15.34]
[1643516280975,1.45396285,94.603,94.55,25.37]
[1643516281175,44.30121758,94.615,94.55,25.37]
[1643516281376,1.45396285,94.613,94.55,25.37]
[1643516281579,1.45396285,94.615,94.551,25.008]
[1643516281777,1.45396285,94.62,94.551,25.008]
[1643516281976,1.45396285,94.621,94.551,25.008]
[1643516282177,0.25,94.619,94.551,25.008]
[1643516282380,1.45396285,94.621,94.551,25.008]
[1643516282381,0.25,94.62,94.552,1.30822164]
[1643516282783,42.00475287,94.626,94.551,25.008]
[1643516282784,0.25,94.621,94.553,0.25]
[1643516283281,1.45396285,94.624,94.553,0.25]
[1643516283481,43.45871572,94.626,94.561,6.0]
[1643516283681,42.00475287,94.626,94.562,6.0]
[1643516283982,6.0,94.616,94.564,6.0]
[1643516284185,6.0,94.616,94.563,1.55822164]
[1643516284582,0.25,94.615,94.563,1.30822164]
[1643516284809,0.25,94.615,94.56,15.34]
[1643516285407,6.0,94.614,94.56,15.34]
[1643516285813,0.25,94.613,94.56,15.34]
[1643516286915,0.25,94.622,94.56,15.34]
[1643516287307,0.25,94.625,94.56,15.34]
[1643516287708,1.45396285,94.642,94.56,15.34]
[1643516287907,23.1641,94.643,94.561,0.25]
[1643516288108,6.0,94.632,94.57,6.0]
[1643516288508,6.0,94.633,94.57,6.0]
[1643516288707,34.65817218,94.631,94.57,6.0]
[1643516289106,0.25,94.63,94.57,6.0]
[1643516290409,0.25,94.63,94.56,15.34]
[1643516290608,24.6673,94.63,94.56,15.34]
[1643516291706,24.6673,94.63,94.561,0.25]
[1643516292112,6.0,94.62,94.561,0.25]
[1643516292311,0.25,94.619,94.561,0.25]
[1643516292511,0.25,94.619,94.56,15.34]
[1643516294314,0.25,94.619,94.561,0.25]
[1643516296716,24.4173,94.63,94.57,6.0]
[1643516296918,24.4173,94.63,94.57,21.34]
[1643516297119,24.4173,94.63,94.571,105.65]
[1643516297321,24.4173,94.63,94.571,106.96782742]
[1643516297516,24.4173,94.63,94.581,6.0]
[1643516297720,1.45396285,94.656,94.581,6.0]
[1643516297918,1.45396285,94.657,94.582,105.65]
[1643516298118,0.25,94.655,94.592,6.0]
[1643516298317,48.4896,94.676,94.592,6.0]
[1643516298318,0.25,94.66,94.593,24.8007]
[1643516298518,0.25,94.66,94.593,25.0507]
[1643516298519,6.0,94.655,94.593,25.0507]
[1643516298919,0.25,94.654,94.593,25.0507]
[1643516299326,24.7362,94.654,94.593,25.0507]
[1643516300321,24.7362,94.654,94.593,24.8007]
[1643516300521,24.7362,94.654,94.58,15.34]
[1643516300727,24.7362,94.654,94.581,0.25]
[1643516307729,24.7362,94.654,94.58,15.34]
[1643516307929,6.0,94.644,94.58,15.34]
[1643516308127,24.34,94.643,94.58,15.34]
[1643516308326,24.59,94.643,94.58,15.34]
[1643516311133,31.01030972,94.632,94.58,15.34]
[1643516311329,24.0771,94.631,94.58,15.34]
[1643516317942,24.0771,94.631,94.59,6.0]
[1643516318139,24.0771,94.631,94.59,21.34]
[1643516318339,24.0771,94.631,94.591,0.25]
[1643516318941,44.00695015,94.648,94.591,0.25]
[1643516319141,23.0277,94.647,94.591,24.1374]
[1643516319344,23.2777,94.647,94.591,24.1374]
[1643516321452,23.2777,94.647,94.591,23.8874]
[1643516323752,24.73166285,94.647,94.591,23.8874]
[1643516324652,1.45396285,94.646,94.591,23.8874]
[1643516324851,0.25,94.645,94.591,23.8874]
[1643516325954,0.25,94.645,94.592,0.25]
[1643516326372,0.25,94.646,94.592,0.25]
[1643516328571,0.25,94.646,94.601,6.0]
[1643516328772,0.25,94.646,94.61,15.34]
[1643516344895,0.25,94.654,94.61,15.34]
[1643516345497,0.25,94.654,94.595,15.9719]
[1643516345694,0.25,94.655,94.596,0.25]
[1643516345897,1.70396285,94.655,94.596,0.25]
[1643516346111,0.25,94.655,94.596,0.25]
[1643516346304,0.25,94.656,94.596,0.25]
[1643516346702,1.70396285,94.656,94.596,0.25]
[1643516347003,1.70396285,94.656,94.61,15.34]
[1643516347202,0.25,94.656,94.61,15.34]
[1643516347402,0.25,94.656,94.596,0.25]
[1643516347905,0.25,94.657,94.596,0.25]
[1643516348303,0.25,94.659,94.596,0.25]
[1643516350310,0.25,94.659,94.61,15.34]
[1643516350511,0.25,94.659,94.62,6.0]
[1643516350709,0.25,94.663,94.62,6.0]
[1643516350911,0.25,94.672,94.621,6.0]
[1643516351111,0.25,94.672,94.63,6.0]
[1643516351610,1.45396285,94.683,94.64,15.34]
[1643516352009,24.3048,94.698,94.65,6.0]
[1643516352010,1.45396285,94.691,94.65,6.0]
[1643516352208,1.45396285,94.693,94.65,6.0]
[1643516352422,1.45396285,94.695,94.65,6.0]
[1643516352630,1.45396285,94.696,94.65,6.0]
[1643516352828,0.25,94.695,94.64,15.34]
[1643516353029,6.0,94.686,94.641,24.5392]
[1643516353429,0.25,94.685,94.641,24.5392]
[1643516354533,0.25,94.685,94.651,6.0]
[1643516354833,0.25,94.697,94.66,15.34]
[1643516355032,0.25,94.697,94.65,15.34]
[1643516355236,0.25,94.697,94.623,24.9755]
[1643516355437,6.0,94.688,94.64,15.34]
[1643516355635,6.0,94.687,94.623,24.9755]
[1643516355835,31.0384,94.687,94.623,24.9755]
[1643516356036,31.0384,94.687,94.63,15.34]
[1643516356437,6.0,94.684,94.63,15.34]
[1643516356636,6.0,94.677,94.63,15.34]
[1643516356938,0.25,94.676,94.63,15.34]
[1643516357140,0.25,94.676,94.631,1.56782732]
[1643516357535,0.25,94.676,94.632,1.31782732]
[1643516358036,0.25,94.676,94.633,0.25]
[1643516358239,1.45396285,94.701,94.633,0.25]
[1643516358240,0.25,94.7,94.633,0.25]
[1643516358940,0.25,94.703,94.633,0.25]
[1643516359139,6.0,94.695,94.633,0.25]
[1643516359338,23.2784,94.694,94.633,0.25]
[1643516360438,23.2784,94.694,94.634,1.31782732]
[1643516360840,23.2784,94.694,94.635,0.25]
[1643516361038,23.2784,94.694,94.64,15.34]
[1643516361442,23.2784,94.694,94.641,0.25]
[1643516361839,23.2784,94.694,94.641,25.0141]
[1643516362443,23.2784,94.694,94.642,105.4]
[1643516362743,23.2784,94.694,94.643,1.31782732]
[1643516362943,23.2784,94.694,94.643,1.56782732]
[1643516363567,23.2784,94.694,94.644,1.31782732]
[1643516363947,0.25,94.694,94.645,0.25]
[1643516364346,23.4966,94.713,94.645,0.22461894]
[1643516365744,0.25,94.712,94.645,0.22461894]
[1643516366149,0.25,94.712,94.646,1.31782732]
[1643516366346,0.25,94.712,94.65,15.34]
[1643516366751,0.25,94.712,94.651,1.56782732]
[1643516366949,0.25,94.712,94.651,106.96782732]
[1643516367150,0.25,94.712,94.652,130.90922732]
[1643516367349,0.25,94.712,94.653,0.25]
[1643516367548,0.25,94.712,94.653,1.56782732]
[1643516367948,0.25,94.712,94.654,1.31782732]
[1643516368349,0.25,94.712,94.655,0.25]
[1643516368548,0.25,94.712,94.67,15.34]
[1643516369551,0.25,94.713,94.67,15.34]
[1643516369755,6.0,94.727,94.671,24.3889]
[1643516369951,6.25,94.726,94.671,24.3889]
[1643516370352,22.6278,94.725,94.671,24.3889]
[1643516370752,6.0,94.733,94.672,105.4]
[1643516370952,1.45396285,94.749,94.682,111.4]
[1643516371176,1.45396285,94.755,94.691,105.4]
[1643516371376,1.45396285,94.755,94.69,15.34]
[1643516371576,1.45396285,94.755,94.691,0.25]
[1643516371777,6.0,94.745,94.691,0.25]
[1643516372176,6.25,94.744,94.691,0.25]
[1643516372477,42.69406644,94.754,94.692,1.31782732]
[1643516372876,42.69406644,94.754,94.702,6.0]
[1643516373676,0.25,94.753,94.702,6.0]
[1643516374176,0.25,94.753,94.7,15.34]
[1643516374479,1.70396285,94.772,94.701,0.25]
[1643516374677,6.0,94.763,94.701,0.25]
[1643516374877,6.25,94.762,94.701,0.25]
[1643516375078,6.0,94.752,94.701,0.25]
[1643516375277,0.25,94.751,94.701,0.25]
[1643516375481,6.25,94.751,94.701,105.65]
[1643516375679,6.0,94.75,94.701,105.65]
[1643516375878,6.0,94.741,94.701,0.25]
[1643516376279,0.25,94.74,94.701,0.25]
[1643516377380,0.25,94.749,94.701,0.25]
[1643516378585,0.25,94.749,94.71,6.0]
[1643516379185,0.25,94.749,94.711,6.0]
[1643516379388,0.25,94.749,94.71,21.34]
[1643516380890,0.25,94.759,94.71,21.34]
[1643516383691,0.25,94.759,94.711,105.4]
[1643516383894,0.25,94.777,94.713,105.4]
[1643516384093,0.25,94.777,94.721,105.4]
[1643516384292,23.8264,94.787,94.723,6.0]
[1643516384492,23.8264,94.787,94.731,6.0]
[1643516384493,43.30645875,94.786,94.731,6.0]
[1643516384696,43.30645875,94.786,94.722,0.25]
[1643516384697,43.30645875,94.786,94.73,15.34]
[1643516384892,43.30645875,94.786,94.731,6.25]
[1643516385093,43.30645875,94.786,94.732,22.8911]
[1643516386593,43.30645875,94.786,94.73,15.34]
[1643516386995,6.0,94.776,94.73,15.34]
[1643516388095,0.25,94.775,94.73,15.34]
[1643516396003,6.0,94.774,94.73,15.34]
[1643516396202,6.0,94.774,94.731,0.25]
[1643516396602,6.0,94.776,94.73,15.34]
[1643516397404,6.0,94.774,94.73,15.34]
[1643516397605,24.5329,94.775,94.73,15.34]
[1643516399006,24.5329,94.775,94.71,15.34]
[1643516399007,6.0,94.765,94.71,15.34]
[1643516399210,14.227911,94.764,94.673,1.47015421]
[1643516399408,22.3982083,94.756,94.66,15.34]
[1643516399607,6.0,94.746,94.66,31.3301]
[1643516399806,24.3778,94.745,94.66,31.3301]
[1643516400408,24.3778,94.745,94.67,6.0]
[1643516400607,24.3778,94.745,94.661,23.9055]
[1643516400806,24.3778,94.745,94.661,23.6555]
[1643516401009,24.3778,94.745,94.661,129.0555]
[1643516401607,6.0,94.735,94.661,129.0555]
[1643516401808,25.1092,94.734,94.661,129.0555]
[1643516402111,25.1092,94.734,94.671,6.0]
[1643516404214,25.1092,94.734,94.672,0.25]
[1643516406015,0.25,94.734,94.672,0.25]
[1643516406215,0.25,94.734,94.672,24.7974]
[1643516406415,6.0,94.738,94.672,24.2974]
[1643516406614,1.45396285,94.752,94.682,6.0]
[1643516406816,25.16066285,94.755,94.682,6.0]
[1643516407014,6.0,94.745,94.672,24.2974]
[1643516407216,23.3484,94.744,94.672,24.2974]
[1643516407415,29.3484,94.744,94.672,24.2974]
[1643516407616,6.0,94.734,94.68,15.34]
[1643516407818,0.25,94.733,94.68,15.34]
[1643516408418,23.7658,94.733,94.68,15.34]
[1643516408618,6.0,94.723,94.68,15.34]
[1643516408818,0.25,94.722,94.68,15.34]
[1643516409021,6.0,94.715,94.68,15.34]
[1643516409419,0.25,94.714,94.68,15.34]
[1643516410423,0.25,94.732,94.68,15.34]
[1643516413554,23.9646,94.741,94.68,15.34]
[1643516416055,0.25,94.741,94.69,6.0]
[1643516416257,0.25,94.751,94.69,33.19]
[1643516416456,0.25,94.751,94.69,27.19]
[1643516416657,0.25,94.754,94.7,6.0]
[1643516416867,0.25,94.757,94.7,6.0]
[1643516417057,0.25,94.761,94.691,22.9086]
[1643516417660,6.0,94.752,94.691,22.9086]
[1643516417858,24.9891,94.751,94.691,22.9086]
[1643516418458,26.44306285,94.751,94.691,22.9086]
[1643516419460,24.9891,94.751,94.691,22.9086]
[1643516424563,24.9891,94.751,94.701,6.0]
[1643516424765,24.9891,94.751,94.7,6.0]
[1643516426965,1.45396285,94.749,94.7,6.0]
[1643516427367,0.25,94.748,94.7,6.0]
[1643516428366,1.70396285,94.748,94.7,6.0]
[1643516428669,1.45396285,94.749,94.7,6.0]
[1643516428867,0.25,94.747,94.7,6.0]
[1643516429066,0.25,94.747,94.69,15.34]
[1643516429268,6.0,94.739,94.69,15.34]
[1643516429468,22.63,94.738,94.666,23.7888]
[1643516429670,6.0,94.736,94.666,23.7888]
[1643516429868,0.25,94.735,94.666,23.7888]
[1643516430070,31.41134917,94.727,94.666,23.7888]
[1643516430268,0.25,94.726,94.666,23.7888]
[1643516430869,22.8209,94.726,94.67,15.34]
[1643516433170,6.0,94.716,94.67,15.34]
[1643516433372,0.25,94.715,94.67,15.34]
[1643516434470,0.25,94.725,94.67,15.34]
[1643516436573,1.45396285,94.724,94.67,15.34]
[1643516436776,6.0,94.716,94.67,15.34]
[1643516436972,6.0,94.716,94.643,1.3119459]
[1643516436973,6.0,94.714,94.65,15.34]
[1643516437374,6.0,94.705,94.65,15.34]
[1643516437773,0.25,94.704,94.65,15.34]
[1643516438806,0.25,94.714,94.65,15.34]
[1643516439009,6.0,94.705,94.65,15.34]
[1643516439207,23.2659,94.704,94.65,15.34]
[1643516439504,23.5159,94.704,94.65,15.34]
[1643516444410,6.0,94.694,94.65,15.34]
[1643516444812,0.25,94.693,94.65,15.34]
[1643516445814,0.25,94.693,94.66,6.0]
[1643516446015,0.25,94.693,94.66,33.35]
[1643516446313,0.25,94.703,94.661,1.3119459]
[1643516446514,0.25,94.703,94.661,7.3119459]
[1643516446715,0.25,94.725,94.661,7.3119459]
[1643516447112,0.25,94.725,94.662,23.1624]
[1643516447713,6.0,94.716,94.662,23.1624]
[1643516447915,0.25,94.715,94.662,23.1624]
[1643516451116,6.25,94.715,94.662,23.1624]
[1643516451318,0.25,94.714,94.662,23.1624]
[1643516451518,0.25,94.724,94.662,23.1624]
[1643516453019,0.25,94.724,94.672,6.0]
[1643516455420,0.25,94.724,94.662,23.1624]
[1643516455620,6.0,94.715,94.662,23.1624]
[1643516455820,0.25,94.714,94.662,23.1624]
[1643516457024,0.25,94.714,94.672,6.0]
[1643516457423,0.25,94.724,94.672,6.0]
[1643516458026,1.1491344,94.713,94.669,13.44]
[1643516458427,0.25,94.712,94.662,23.1624]
[1643516458628,0.25,94.712,94.662,39.2241]
[1643516459126,0.25,94.712,94.672,6.0]
[1643516459828,1.1491344,94.713,94.672,6.0]
[1643516460128,1.1491344,94.713,94.67,120.74]
[1643516460329,0.25,94.712,94.67,120.74]
[1643516460527,0.25,94.712,94.68,6.0]
[1643516460730,1.1491344,94.713,94.68,6.0]
[1643516460929,0.25,94.712,94.68,6.0]
[1643516461129,0.25,94.712,94.681,22.8361]
[1643516463030,1.1486963,94.711,94.681,22.8361]
[1643516463430,0.25,94.71,94.681,22.8361]
[1643516468140,1.14825819,94.709,94.681,22.8361]
[1643516468339,0.25,94.708,94.681,22.8361]
[1643516473060,1.14782005,94.707,94.681,22.8361]
[1643516473262,0.25,94.706,94.681,22.8361]
[1643516473462,0.25,94.706,94.67,15.34]
[1643516473862,0.25,94.706,94.67,16.65195124]
[1643516474065,0.25,94.706,94.671,23.4123]
[1643516474762,1.14782005,94.707,94.672,0.25]
[1643516478163,1.45396285,94.736,94.672,0.25]
[1643516478363,0.25,94.735,94.672,0.25]
[1643516478564,6.0,94.727,94.672,0.25]
[1643516478764,0.25,94.726,94.672,0.25]
[1643516478966,0.25,94.726,94.681,6.0]
[1643516480870,0.25,94.726,94.682,6.0]
[1643516481172,6.0,94.727,94.682,6.0]
[1643516483075,1.15198157,94.726,94.682,6.0]
[1643516483276,0.25,94.725,94.672,105.65]
[1643516484880,1.45396285,94.737,94.673,39.0]
[1643516485079,0.08956394,107.9,94.683,111.4]
[1643516485080,1.45396285,94.752,94.683,111.4]
[1643516485283,1.45396285,94.773,94.691,105.4]
[1643516485482,1.45396285,94.773,94.697,1.47015421]
[1643516485683,1.45396285,94.781,94.71,15.34]
[1643516485884,1.2363427,94.783,94.711,128.8722]
[1643516486085,1.2363427,94.783,94.721,111.4]
[1643516486286,0.25,94.782,94.722,23.4722]
[1643516486484,0.25,94.782,94.723,105.4]
[1643516486685,0.25,94.782,94.732,6.0]
[1643516486886,0.25,94.784,94.733,6.0]
[1643516487285,0.25,94.784,94.722,24.78415124]
[1643516487484,0.25,94.784,94.724,0.25]
[1643516487684,0.25,94.784,94.722,24.78415124]
[1643516487887,0.25,94.784,94.722,1.56195124]
[1643516488084,20.28158712,94.774,94.722,1.56195124]
[1643516488286,23.9319,94.773,94.722,1.56195124]
[1643516488884,23.71447032,94.773,94.722,1.56195124]
[1643516491412,23.71447032,94.773,94.722,1.31195124]
[1643516491615,23.71447032,94.773,94.72,15.34]
[1643516492614,23.71447032,94.773,94.721,1.31195124]
[1643516493017,23.71447032,94.773,94.722,23.8929]
[1643516493415,23.71447032,94.773,94.723,1.31195124]
[1643516498620,49.15660431,94.773,94.723,1.31195124]
[1643516499221,23.71447032,94.773,94.723,1.31195124]
[1643516500223,39.67624037,94.772,94.723,1.31195124]
[1643516500525,0.25,94.771,94.723,1.31195124]
[1643516501526,0.25,94.772,94.723,1.31195124]
[1643516507832,0.25,94.772,94.724,0.25]
[1643516508236,0.25,94.772,94.725,1.31195124]
[1643516508632,0.25,94.772,94.726,0.25]
[1643516508833,0.25,94.772,94.73,15.34]
[1643516511336,0.25,94.781,94.73,15.34]
[1643516511534,6.0,94.782,94.73,15.34]
[1643516512134,23.1386,94.791,94.73,15.34]
[1643516512135,6.0,94.781,94.73,15.34]
[1643516512536,6.0,94.781,94.74,6.0]
[1643516512737,0.25,94.78,94.74,6.0]
[1643516516042,0.25,94.78,94.73,15.34]
[1643516525976,0.25,94.78,94.731,1.31195124]
[1643516526176,0.25,94.78,94.741,6.0]
[1643516526379,0.25,94.79,94.742,23.7724]
[1643516527976,0.25,94.79,94.742,25.08435124]
[1643516531483,3.00208256,94.822,94.743,105.4]
[1643516531679,15.8736118,94.87,94.743,105.4]
[1643516531680,2.90208256,94.838,94.752,6.0]
[1643516531879,2.90208256,94.843,94.76,15.34]
[1643516532079,6.0,94.833,94.77,21.34]
[1643516532480,6.0,94.833,94.771,1.31195124]
[1643516532681,6.0,94.83,94.771,1.31195124]
[1643516532881,6.0,94.83,94.781,6.0]
[1643516533581,6.0,94.83,94.78,21.34]
[1643516533983,6.0,94.83,94.78,15.34]
[1643516534182,6.0,94.822,94.78,15.34]
[1643516534582,38.15871678,94.821,94.78,15.34]
[1643516534782,0.25,94.82,94.78,15.34]
[1643516534985,23.7231,94.82,94.78,15.34]
[1643516535383,23.4731,94.82,94.78,15.34]
[1643516536383,37.03025258,94.819,94.78,15.34]
[1643516538789,37.03025258,94.819,94.78,20.459434]
[1643516539591,6.0,94.809,94.78,20.459434]
[1643516540192,0.25,94.81,94.78,20.459434]
[1643516540992,37.03025258,94.819,94.78,20.459434]
[1643516541892,37.03025258,94.819,94.78,15.34]
[1643516543495,6.0,94.809,94.78,15.34]
[1643516548708,37.03025258,94.819,94.78,15.34]
[1643516549505,23.7231,94.82,94.78,15.34]
[1643516550304,0.2,94.833,94.78,15.34]
[1643516550504,6.0,94.848,94.781,24.04441059]
[1643516550903,6.0,94.847,94.781,22.7319]
[1643516551127,6.2,94.847,94.791,6.0]
[1643516551332,6.0,94.847,94.791,6.0]